Cogmind - Beta 15 @@@ ROGUE MODE // 2025.10.18 @ 18:24:24 Player: theMouse Result: Destroyed by O6-FCB(g) with Beamcaster Performance ------------- Evolutions (0) 0 Regions Visited (3) 600 Robots Destroyed (5) 25 Value Destroyed (83) 83 Prototype IDs (8) 160 Alien Tech Used (0) 0 Bonus (800) 800 TOTAL SCORE: 1668 Bonus ------- Registered with UFD 300 Met Optimus in HQ 500 Cogmind --------- Core Integrity 0/250 Matter 285/300 Energy 70/160 System Corruption 5% Temperature Warm (183) Movement Walking (190) Ox1 Location -8/Scraptown Parts ------- > --- POWER (1) -------- Light Nuclear Core > --- PROPULSION (2) --- Aluminum Leg > --- UTILITY (2) ------ Improved Heat Sink Small Storage Unit > --- WEAPON (2) ------- (None) > --- INVENTORY (8) ---- Light Nuclear Core Aluminum Leg Visual Processing Unit Improved Terrain Scanner Experimental Terrain Scan Processor DRS Beacon (Ready) Peak State ------------ > --- POWER ------------ Ion Engine > --- PROPULSION ------- Aluminum Leg Aluminum Leg > --- UTILITY ---------- Improved Heat Sink Small Storage Unit > --- WEAPON ----------- Heavy Particle Cannon Overtuned Barrage Gun > --- INVENTORY -------- Light Nuclear Core Light Nuclear Core Aluminum Leg Aluminum Leg Visual Processing Unit Improved Terrain Scanner Medium Laser DRS Beacon [Rating: 15] Favorites ----------- Power Ion Engine Engine Ion Engine Power Core Light Nuclear Core Propulsion Aluminum Leg Leg Aluminum Leg Utility Small Storage Unit Device Improved Heat Sink Storage Small Storage Unit Weapon Heavy Particle Cannon Energy Cannon Heavy Particle Cannon Ballistic Gun Overtuned Barrage Gun Build | -11 -10 -10 -8 ------- Run | Yrd Mat Sub Scr Slots Evolved . | . . . . Power . | . . . . Propulsion . | . . . . Utility . | . . . . Weapon . | . . . . Parts Attached 5 | . 1 . 4 Power 1 | . . . 1 Engine . | . . . . Core 1 | . . . 1 Reactor . | . . . . Propulsion 1 | . . . 1 Treads . | . . . . Leg 1 | . . . 1 Wheel . | . . . . Hover . | . . . . Flight . | . . . . Utility 1 | . 1 . . Device 1 | . 1 . . Storage . | . . . . Processor . | . . . . Hackware . | . . . . Protection . | . . . . Artifact . | . . . . Weapon 2 | . . . 2 Energy Gun . | . . . . Energy Cannon 1 | . . . 1 Ballistic Gun 1 | . . . 1 Ballistic Cannon . | . . . . Launcher . | . . . . Special Weapon . | . . . . Impact Weapon . | . . . . Slashing Weapon . | . . . . Piercing Weapon . | . . . . Special Melee Weapon . | . . . . Unidentified Prototypes . | . . . . Parts Lost 5 | . . . 5 Power 1 | . . . 1 Propulsion 2 | . . . 2 Utility . | . . . . Weapon 2 | . . . 2 Highest Loss Streak 5 | . . . 5 To Critical Strikes . | . . . . Average Backups 7 | 5 6 7 7 Power 1 | 1 1 2 2 Propulsion 3 | 3 3 3 2 Utility 1 | . . 1 1 Weapon . | 1 1 1 . Tool/Special . | . . . . Unused Backups 5 | . . . 5 Power 1 | . . . 1 Propulsion 2 | . . . 2 Utility 2 | . . . 2 Weapon . | . . . . Tool/Special . | . . . . Average Slot Usage (%) 99 | . 94 100 99 Engine 13 | . 14 14 13 Leg 27 | . 28 28 27 Device 13 | . 8 14 14 Storage 14 | . 14 14 14 Energy Cannon 10 | . . . 12 Ballistic Gun 17 | . 28 28 15 Peak Build Rating 15 | 6 10 10 15 Average Rating 12 | 6 8 10 13 On Entrance 8 | 6 6 10 10 Naked Turns . | . . . . Heaviest Build 20 | 14 15 15 20 Greatest Support 20 | 20 20 20 20 Greatest Overweight (x) 1 | . . . 1 Average Overweight (x) . | . . . . Largest Inventory Capacity 8 | 8 8 8 8 Average Capacity 8 | 8 8 8 8 Most Carried 8 | 5 8 7 8 Average Carried 7 | 4 6 7 7 Final Capacity 8 | 8 8 8 8 Final Carried 7 | 4 7 7 6 Class Distribution -------------------- 100% | Mutant Dominant Class ---------------- Mutant | -10/Materials Mutant | -10/Subcaves Mutant | -8/Scraptown Resources | -11 -10 -10 -8 ----------- Run | Yrd Mat Sub Scr Matter Collected 284 | 200 46 . 38 Remotely . | . . . . Salvage Created 166 | . 96 . 70 Parts 9 | . 6 . 3 Haulers Intercepted . | . . . . Recyclers Shooed . | . . . . Parts Field Recycled . | . . . . Retrieved Matter . | . . . . Parts Self-Destructed 6 | . . 6 . Prevented . | . . . . Kills | -11 -10 -10 -8 ------- Run | Yrd Mat Sub Scr Combat Hostiles Destroyed 2 | . 1 . 1 Guns 1 | . 1 . . Cannons 1 | . . . 1 Classes Destroyed 5 | . 4 . 1 Worker 1 | . 1 . . Tunneler 1 | . 1 . . Watcher 1 | . 1 . . Swarmer 1 | . 1 . . Scrapper 1 | . . . 1 Best Kill Streak 2 | . 2 . 1 Combat Bots Only 1 | . 1 . 1 Max Kills in Single Turn 1 | . 1 . 1 Gunslinging . | . . . . Exploded . | . . . . Melee . | . . . . Uniques/NPCs Destroyed . | . . . . Combat | -11 -10 -10 -8 -------- Run | Yrd Mat Sub Scr Hostile Shots Fired 48 | . . . 48 Missed 9 | . . . 9 Hits 39 | . . . 39 Melee 2 | . . . 2 Projectile 37 | . . . 37 Critical Strikes 5 | . . . 5 Damage Taken 891 | . . . 891 Core 256 | . . . 256 Absorbed by Shields . | . . . . Core Remaining (%) 100 | 100 . . . Volleys Fired 17 | . 9 . 8 Largest 2 | . 2 . 2 Hottest 105 | . 40 . 105 Shots Fired 31 | . 18 . 13 Gun 23 | . 18 . 5 Cannon 8 | . . . 8 Launcher . | . . . . Special . | . . . . Kinetic 23 | . 18 . 5 Thermal 8 | . . . 8 Explosive . | . . . . Electromagnetic . | . . . . Robot Hit Streak 3 | . 3 . 2 Robot Miss Streak 5 | . 5 . 2 Penetration Max . | . . . . Secondary Targets . | . . . . Shots Hit Robots 14 | . 7 . 7 Core Hits 6 | . 4 . 2 Critical Kills . | . . . . Critical Parts Destroyed . | . . . . Critical Strikes . | . . . . Melee Attacks . | . . . . Impact . | . . . . Slashing . | . . . . Piercing . | . . . . Sneak Attacks . | . . . . Combat Hostiles . | . . . . Follow-up Attacks . | . . . . Damage Inflicted 268 | . 109 . 159 Guns 168 | . 109 . 59 Cannons 100 | . . . 100 Explosions . | . . . . Melee . | . . . . Ramming . | . . . . Kinetic 168 | . 109 . 59 Thermal 100 | . . . 100 Explosive . | . . . . Electromagnetic . | . . . . Impact . | . . . . Slashing . | . . . . Piercing . | . . . . Highest Corruption 5 | . . . 5 Average Corruption 5 | . . . 5 Corruption Purged . | . . . . Corruption Blocked . | . . . . Effects 1 | . . . 1 Energy Discharges 1 | . . . 1 Overload Shots . | . . . . Overflow Damage . | . . . . Projectiles . | . . . . Explosions . | . . . . Melee . | . . . . Knockbacks . | . . . . Impact . | . . . . Kinetic . | . . . . Secondary . | . . . . Self-Inflicted Damage . | . . . . Shots . | . . . . Rammed . | . . . . Targets Rammed . | . . . . Kicked . | . . . . Crushed . | . . . . Highest Temperature 271 | . . . 271 Average Temperature 147 | . . . 147 Received Heat Transfer 456 | . . . 456 Siege Activations . | . . . . Martial Activations . | . . . . Shielding Activations . | . . . . Robots Disrupted . | . . . . Combat Hostiles . | . . . . Robots Corrupted . | . . . . Combat Hostiles . | . . . . Parts Fried . | . . . . Impact Corruptions . | . . . . Robots Melted . | . . . . Combat Hostiles . | . . . . Parts Melted . | . . . . Heat Transferred 100 | . . . 100 Parts Sabotaged . | . . . . Parts Stolen . | . . . . Parts Stripped . | . . . . Power Chain Reactions . | . . . . Alert | -11 -10 -10 -8 ------- Run | Yrd Mat Sub Scr Maximum Alert Level . | . . . . Low Security (%) 100 | 100 100 . . Level 1 . | . . . . Level 2 . | . . . . Level 3 . | . . . . Level 4 . | . . . . Level 5 . | . . . . High Security . | . . . . Max Security . | . . . . Peak Influence 25 | . 25 . . Initial . | . . . . Average 4 | . 4 . . Influence Increases 40 | . 40 . . Destroy 0b10 Robot/C 20 | . 20 . . Destroy 0b10 Robot/NC 15 | . 15 . . Destroy Leader 2 | . 2 . . Successful Hack 2 | . 2 . . Destroy Structure 1 | . 1 . . Influence Decreases 40 | . 40 . . Time Decay 40 | . 40 . . Squads Dispatched . | . . . . Investigation . | . . . . Extermination . | . . . . Reinforcement . | . . . . Assault . | . . . . Garrison . | . . . . Intercept . | . . . . Searches Triggered . | . . . . Construction Impeded . | . . . . Haulers Reinforced . | . . . . Active Scanning Responses . | . . . . Cargo Convoy Interrupts . | . . . . Stealth | -11 -10 -10 -8 --------- Run | Yrd Mat Sub Scr Distress Signals 1 | . 1 . . Communications Jammed . | . . . . Distress Signals . | . . . . Times Spotted 26 | . 12 . 14 Peak Tracking Total 10 | . 5 . 10 Tactical Retreats . | . . . . Traps | -11 -10 -10 -8 ------- Run | Yrd Mat Sub Scr Traps Triggered . | . . . . Indirectly . | . . . . Trap Hack Attempts . | . . . . Triggered . | . . . . Disarmed . | . . . . Reprogrammed . | . . . . Reused . | . . . . Traps Extracted . | . . . . Installed . | . . . . Triggered . | . . . . Machines | -11 -10 -10 -8 ---------- Run | Yrd Mat Sub Scr Machines Disabled . | . . . . Max in Single Turn . | . . . . Machines Repaired . | . . . . Machines Dismantled . | . . . . Machines Sabotaged . | . . . . Overloaded Fab Kills . | . . . . Hacking | -11 -10 -10 -8 --------- Run | Yrd Mat Sub Scr Machines Accessed 8 | . 1 . 7 Terminals 1 | . 1 . . Fabricators . | . . . . Repair Stations . | . . . . Recycling Units . | . . . . Scanalyzers . | . . . . Garrison Access . | . . . . Total Hacks 56 | . 3 . 53 Successful 56 | . 3 . 53 Failed . | . . . . Catastrophic . | . . . . Database Lockouts . | . . . . Manual 1 | . . . 1 Terminals 3 | . 3 . . Fabricators . | . . . . Repair Stations . | . . . . Recycling Units . | . . . . Scanalyzers . | . . . . Garrison Access . | . . . . Terminal Hacks 56 | . 3 . 53 Record 54 | . 1 . 53 Registered Components 1 | . 1 . . Zone Layout 1 | . 1 . . Fabricator Hacks . | . . . . Repair Station Hacks . | . . . . Recycling Unit Hacks . | . . . . Scanalyzer . | . . . . Garrison Access Hacks . | . . . . Unauthorized Hacks . | . . . . Terminals . | . . . . Fabricators . | . . . . Repair Stations . | . . . . Recycling Units . | . . . . Scanalyzers . | . . . . Garrison Access . | . . . . Data Cores Recovered . | . . . . Used . | . . . . Hacking Detections 1 | . 1 . . Full Trace Events 1 | . 1 . . Feedback Events . | . . . . Feedback Blocked . | . . . . Robot Schematics Acquired . | . . . . Robots Built . | . . . . Authchips . | . . . . Time . | . . . . Total Robot Build Rating . | . . . . Part Schematics Acquired . | . . . . Parts Built . | . . . . Authchips . | . . . . Time . | . . . . Total Part Build Rating . | . . . . Parts Repaired . | . . . . Time . | . . . . Parts Recycled . | . . . . Recycled Matter . | . . . . Retrieved Matter . | . . . . Retrieved Components . | . . . . Parts Scanalyzed . | . . . . Part Schematics Acquired . | . . . . Parts Damaged . | . . . . Bothacking | -11 -10 -10 -8 ------------ Run | Yrd Mat Sub Scr Used RIF Installer . | . . . . Robots Hacked . | . . . . Non-combat . | . . . . Combat . | . . . . Robot Hacks Applied . | . . . . Relay Couplers Released . | . . . . Fabnet Peak Effective % . | . . . . Robots Rewired . | . . . . Allies Hacked . | . . . . Hacks Repelled . | . . . . Allies | -11 -10 -10 -8 -------- Run | Yrd Mat Sub Scr Total Allies . | . . . . Largest Group . | . . . . Highest-Rated Group . | . . . . Highest-Rated Ally . | . . . . Total Orders . | . . . . Ally Attacks . | . . . . Total Damage . | . . . . Kills . | . . . . Allies Corrupted . | . . . . Allies Melted 1 | . . . 1 Intel | -11 -10 -10 -8 ------- Run | Yrd Mat Sub Scr Active Infowar (turns) . | . . . . Robot Analysis Total . | . . . . Derelict Logs Recovered . | . . . . Drone Launches . | . . . . Drone Recoveries . | . . . . Exploration | -11 -10 -10 -8 ------------- Run | Yrd Mat Sub Scr Turns Passed 2668 | 2 212 234 2220 Spaces Moved 2111 | 1 145 154 1811 Core . | . . . . Treads . | . . . . Legs 2111 | 1 145 154 1811 Wheels . | . . . . Hover . | . . . . Flight . | . . . . Fastest Speed 120 | 120 120 120 120 Average Speed 120 | 120 120 120 120 Slowest Speed 190 | 120 120 120 190 Overloaded Moves . | . . . . Propulsion Burnouts . | . . . . Robots Hopped . | . . . . Potential Cave-ins . | . . . . Cave-ins Triggered . | . . . . Exploration Rate (%) 36 | 2 38 16 90 Regions Visited 3 Branch Regions 2 Pre-discovered Areas . | . . . . Known Exits Taken . | . . . . Unknown Exits Taken 3 | 1 1 1 . Scrap Searched 6 | . . . 6 Spaces Dug . | . . . . Terrain Destroyed 5 | . . . 5 Melee . | . . . . Projectile 5 | . . . 5 AOE . | . . . . Terrain Rammed . | . . . . Walls Destroyed . | . . . . Machines Disabled . | . . . . Actions | -11 -10 -10 -8 --------- Run | Yrd Mat Sub Scr Total 2217 | 2 165 203 1847 Wait 67 | . 4 50 13 Move 2108 | . 144 153 1811 Hop . | . . . . Pick Up 9 | . 5 . 4 Fast Attach 3 | . 1 . 2 Attach 2 | . . . 2 Detach . | . . . . Swap . | . . . . Drop 9 | 2 2 . 5 Fire 17 | . 9 . 8 Melee . | . . . . Ram . | . . . . Kick . | . . . . Crush . | . . . . Escape Stasis . | . . . . Rewire 2 | . . . 2 Trap . | . . . . Miscellaneous . | . . . . Route ------- -11/Scrapyard -10/Materials (discovered 3 exits: [*Mat] / [*Min] / [*Sub]) -10/Subcaves -8/Scraptown (discovered 2 exits: [*Fac x2]) History --------- Turn | Location | Event 3 | -11/Scrapyard | Discovered new exit (range 0) 3 | -11/Scrapyard | Entered Materials 4 | -10/Materials | Met a group of wandering Federalists 99 | -10/Materials | Lost 3 allies 119 | -10/Materials | Discovered new exit (range 14) 165 | -10/Materials | Discovered new exit (range 9) 205 | -10/Materials | Discovered new exit (range 9) 215 | -10/Materials | Entered Subcaves 215 | -10/Subcaves | Accompanied by 1 ally 216 | -10/Subcaves | Continued accompanying wandering Federalists (2) 318 | -10/Subcaves | Build established: Mutant 440 | -10/Subcaves | Wandering Federalist uncovered a shortcut to Scraptown 449 | -10/Subcaves | Entered Scraptown 730 | -8/Scraptown | Visited UFD Registry 738 | -8/Scraptown | Visited The Evicted 775 | -8/Scraptown | Visited Cyclists 821 | -8/Scraptown | Visited Awakened 1453 | -8/Scraptown | Visited Symbiants 1483 | -8/Scraptown | Visited SPCMW 1542 | -8/Scraptown | Visited Bundlers 1633 | -8/Scraptown | Visited Assassins FH 1760 | -8/Scraptown | Discovered new exit (range 5) 1929 | -8/Scraptown | Registered with UFD as "Powerhead" 1975 | -8/Scraptown | Visited Modified Component R&D 2054 | -8/Scraptown | Visited Curators Association 2128 | -8/Scraptown | Visited Scrapoid Research Area 2212 | -8/Scraptown | Discovered new exit (range 3) 2309 | -8/Scraptown | Visited Botcube Research 2331 | -8/Scraptown | Visited Research Penetration Think Tank 2362 | -8/Scraptown | Visited Infowarlord's Domain 2405 | -8/Scraptown | Met Optimus 2405 | -8/Scraptown | Accepted into 0bPrime 2469 | -8/Scraptown | Visited Junk Repository 2500 | -8/Scraptown | Visited Abandonware Association 2524 | -8/Scraptown | Learned abandonware demo "HACKBUD.EXE" 2524 | -8/Scraptown | Learned abandonware demo "KABOOM.EXE" 2562 | -8/Scraptown | Visited Derelict Rescue Squad 2571 | -8/Scraptown | Found DRS Beacon 2582 | -8/Scraptown | Civil war broke out across Scraptown 2639 | -8/Scraptown | Found Exp. Terrain Scan Processor 2661 | -8/Scraptown | Core integrity fell below 50% 2662 | -8/Scraptown | Lost 7 allies 2665 | -8/Scraptown | Core integrity fell below 20% 2669 | -8/Scraptown | Destroyed by O6-FCB(g) with Beamcaster Last Messages --------------- malfunctioning. 02656_ P6-TP8(j) cannibalizes Ovr. Titanium Leg to repair Ovr. Titanium Leg. 02656_ Critical hit (Burn: +50). 02658_ Aluminum Leg destroyed. 02659_ Ion Engine destroyed. 02661_ Ovr. Barrage Gun recovered from malfunction. 02661_ P6-TP8(j) heat short circuits Scrap Suit. 02661_ Ovr. Barrage Gun destroyed. 02662_ L0-YTQ(j) suffers critical hit (Burn). 02662_ L0-YTQ(j) destroyed. 02663_ Critical hit (Burn: +50). 02663_ AH-TPR(j) suffers critical hit (Burn). 02663_ AH-TPR(j) destroyed. 02666_ Critical hit (Burn: +50). 02667_ Aluminum Leg destroyed. 02667_ System corrupted by crushing effect (+5). 02668_ System corrupted: Energy discharge (-27). 02668_ Hvy. Particle Cannon destroyed. Map ----- +----------------------------------------------------+ | !" ##### " " " # #????????????????????????????? | | "" "##""" # #????????????????????????????? | | ""###""" # #????????????????????????????? | | "&#?#""" " # #????????????????????????????? | | ""### " """# #######"###??????????????????? | | "## """# #"""" ""??????????????????? | | ""###"" """# #""" ""#?????????????????? | | "!#?#" " # #""& " #?????????????????? | | ""###" # #""" "#?????????????????? | | "## # # "#?????????????????? | | ########### ##### ## #########?????????????????? | | ########### ##### ## ##????????????????????????? | | """"""""""" """"" " %"##########???????????????? | | "##"""""""#???????????????? | | "## """"""#???????????????? | | ="## ""#???????????????? | | !%"## ""#???????????????? | | [= ""#???????????????? | | """"""""""""""" [## "#???????????????? | | """"""""""""""""" "## ""#???????????????? | | ################" "## " """"#???????????????? | | ##????????#" "##########???????????????? | | X"#????????#""* j !"###########??????????????? | | "" ##????????#" [= =%"## #??????????????? | | "" X"#??????### =%! ";# #??????????????? | | " ######### ;" =! ! ;@ b #??????????????? | | ! =%= ![%=%=jgj [ #??????????????? | | = ! ![%[! #;j #??????????????? | | " ######### #" "###;#######??????????????? | | "" ""#??????###"" "#?###????????????????????? | | "" ##????????#"" "#????????????????????????? | | X"#????????#"" "#????????????????????????? | | ##????????#"" ########?????????????????? | | ################"" "## [#?????????????????? | | """""""""""""""""" ## #?????????????????? | | """"""""""""""""" !* ####?????????????????? | | !%[## |#?????????????????? | | ="## [=#?????????????????? | | ![[* ## !#?????????????????? | | *%=%! ## ####?????????????????? | | [!%[& != # ! #?????????????????? | | "" """""""""""%=""""" =%## =!#?????????????????? | | #" ###########!"##### !/########?????????????????? | | #??# = ## #????????????????????????? | | #??# ## #????????????????????????? | | #??# """"" ## #????????????????????????? | | !%!""#??# "###" ## #????????????????????????? | | != "#??# "#X#" ## #????????????????????????? | | *%= "#??# "# #" ## #????????????????????????? | | = "#??# ## ????????????????????????? | +----------------------------------------------------+ Best States ------------- Heat Dissipation 39 Energy Generation 10 Energy Capacity 250 Matter Stores 300 Matter Capacity 300 Sight Range 16 Terrain Scan Density 10 Evasion (%) 55 Item Schematics ----------------- None Robot Schematics ------------------ None Fabricated ------------ Nothing Repaired ---------- Nothing Alien Tech Used ----------------- None Achievements -------------- None Challenges ------------ None Game ------ Seed PotentialGaussTearclaws Manual? 0 Play Time 01:03:39 Cumulative 26.5 hours Start 2025.10.17 @ 22:26:57 End 2025.10.18 @ 18:24:24 Sessions 5 Manual Loads 0 Difficulty Rogue Special Mode None Game No. 32 Rogue 32 Adventurer 0 Explorer 0 Win Type - Total 0 Types 0/0/0/0/0/0/0/0/0/0 Lore% 12 Gallery% 18 Achievement% 14 Wizard Run 0 Options --------- Layout 1 ASCII 0 Keyboard 0 Movement Numpad Keybinds 0 Fullscreen 2 Font 32/SmallcapsGlow Map View 50x35 Zoom Use 0% Tactical HUD 1 Map Filters NONE Filters NONE Steam 1 RUN: 58db1bae-b286-483f-85d2-aa39ce996fb4